bitfinex-derivatives/quotes_BTCF0:USTF0_20241208
["timestamp","ask_amount","ask_price","bid_price","bid_amount"]
[1733650336571,0.12530521,99328.0,99327.0,0.04678496]
[1733650336777,0.12530521,99328.0,99327.0,0.05933782]
[1733650337478,0.12530696,99328.0,99327.0,0.05933782]
[1733650337673,0.12630696,99328.0,99327.0,0.05933782]
[1733650338477,0.077375,99328.0,99327.0,0.05933782]
[1733650338787,0.077375,99328.0,99327.0,0.0656298]
[1733650339592,0.22790368,99328.0,99327.0,0.0656298]
[1733650340487,0.077375,99328.0,99327.0,0.0656298]
[1733650340987,0.077375,99328.0,99327.0,0.0706634]
[1733650341181,0.22790368,99328.0,99327.0,0.0706634]
[1733650341388,0.077375,99328.0,99327.0,0.0706634]
[1733650341577,0.077375,99328.0,99327.0,0.0253884]
[1733650341777,0.15840743,99328.0,99327.0,0.01283554]
[1733650342879,0.15840743,99328.0,99327.0,0.01598168]
[1733650343087,0.109475,99328.0,99327.0,0.01598168]
[1733650343492,0.109475,99328.0,99327.0,0.0162097]
[1733650343788,0.109475,99328.0,99327.0,0.01598168]
[1733650344280,0.109475,99328.0,99327.0,0.06125668]
[1733650346385,0.109475,99328.0,99327.0,0.01598168]
[1733650347395,0.25995174,99328.0,99327.0,0.01598168]
[1733650347687,0.109475,99328.0,99327.0,0.01598284]
[1733650347884,0.109475,99328.0,99327.0,0.01598268]
[1733650348798,0.109475,99328.0,99327.0,0.01447272]
[1733650349887,0.25993137,99328.0,99327.0,0.01447272]
[1733650350483,0.109475,99328.0,99327.0,0.01447272]
[1733650350787,0.25993255,99328.0,99327.0,0.01447272]
[1733650351289,0.25993255,99328.0,99316.0,0.05534044]
[1733650351290,0.109475,99328.0,99316.0,0.05534044]
[1733650351591,0.04528,99317.0,99316.0,0.05534044]
[1733650351793,0.04528,99317.0,99316.0,0.0823501]
[1733650352490,0.04528,99317.0,99316.0,0.0843501]
[1733650352897,0.04528,99317.0,99316.0,0.0873501]
[1733650353093,0.04528,99317.0,99316.0,0.03200966]
[1733650353593,0.16564426,99317.0,99316.0,0.01947323]
[1733650353899,0.05523069,99317.0,99316.0,0.03223489]
[1733650354096,0.17559495,99317.0,99316.0,0.03200689]
[1733650354403,0.17559495,99317.0,99316.0,0.01970123]
[1733650354404,0.05523069,99317.0,99316.0,0.01970123]
[1733650354590,0.05523069,99317.0,99316.0,0.01947323]
[1733650357094,0.20568602,99317.0,99316.0,0.01947323]
[1733650357285,0.1041706,99317.0,99316.0,0.01947323]
[1733650357894,0.23589779,99317.0,99316.0,0.01318052]
[1733650358094,0.1041706,99317.0,99316.0,0.01318186]
[1733650358492,0.05523069,99317.0,99316.0,0.01318186]
[1733650358797,0.1041706,99317.0,99316.0,0.01318186]
[1733650362001,0.1041706,99317.0,99316.0,0.01947546]
[1733650364502,0.1041706,99317.0,99316.0,0.01444037]
[1733650364702,0.1041706,99317.0,99316.0,0.01318165]
[1733650367005,0.4649706,99317.0,99316.0,0.01947535]
[1733650368203,0.4649706,99317.0,99316.0,0.01947548]
[1733650369994,0.64562528,99317.0,99316.0,0.01947548]
[1733650371310,0.64562528,99317.0,99316.0,0.01947562]
[1733650371904,0.27487459,99317.0,99316.0,0.01947562]
[1733650372106,0.09421991,99317.0,99316.0,0.01947562]
[1733650372302,0.27487459,99317.0,99316.0,0.01947562]
[1733650372502,0.09421991,99317.0,99316.0,0.01947562]
[1733650373210,0.27499051,99317.0,99316.0,0.01947562]
[1733650373608,0.09421991,99317.0,99316.0,0.01947562]
[1733650373911,0.09421991,99317.0,99316.0,0.06475562]
[1733650374117,0.15064752,99317.0,99316.0,0.06475562]
[1733650374302,0.0311,99328.0,99316.0,0.06475562]
[1733650374303,0.15064752,99320.0,99316.0,0.03202324]
[1733650374610,0.09272028,99321.0,99319.0,0.045279]
[1733650374803,0.10064752,99324.0,99322.0,0.045277]
[1733650375000,0.22605367,99332.0,99330.0,0.045273]
[1733650375001,0.045273,99332.0,99330.0,0.045273]
[1733650375200,0.045273,99332.0,99323.0,0.38782324]
[1733650375201,0.045273,99332.0,99331.0,0.38782324]
[1733650375401,0.045273,99332.0,99331.0,0.43309624]
[1733650376701,0.13558609,99332.0,99331.0,0.43309624]
[1733650376908,0.13558609,99332.0,99331.0,0.02702324]
[1733650377103,0.045273,99332.0,99331.0,0.02702324]
[1733650377306,0.045273,99332.0,99331.0,0.01447562]
[1733650377515,0.046273,99332.0,99331.0,0.01447562]
[1733650378507,0.05636198,99332.0,99331.0,0.01447562]
[1733650378722,0.046273,99332.0,99331.0,0.01447562]
[1733650380822,0.046273,99332.0,99331.0,0.01447238]
[1733650381711,0.046273,99332.0,99331.0,0.01470052]
[1733650381918,0.09520654,99332.0,99331.0,0.01470052]
[1733650382114,0.09520654,99332.0,99331.0,0.01447238]
[1733650383522,0.09520654,99332.0,99331.0,0.01447279]
[1733650384114,0.045278,99321.0,99320.0,0.406078]
[1733650384313,0.045278,99321.0,99320.0,0.02700101]
[1733650384314,0.406078,99321.0,99320.0,0.02700101]
[1733650384511,0.406078,99321.0,99307.0,0.00151042]
[1733650384512,0.045283,99309.0,99308.0,0.00022825]
[1733650384816,0.045284,99308.0,99307.0,0.00151042]
[1733650386417,0.045284,99308.0,99307.0,0.00851042]
[1733650386812,0.09423119,99308.0,99307.0,0.00851042]
[1733650387017,0.09423119,99308.0,99307.0,0.01251042]
[1733650389119,0.09423119,99308.0,99307.0,0.011]
[1733650391719,0.05555267,99308.0,99307.0,0.011]
[1733650392221,0.10450104,99308.0,99307.0,0.011]
[1733650392425,0.05555267,99308.0,99307.0,0.01729419]
[1733650394428,0.05555267,99308.0,99307.0,0.02232951]
[1733650396432,0.05555267,99308.0,99307.0,0.02547651]
[1733650396628,0.41635267,99308.0,99307.0,0.02547651]
[1733650397035,0.41635267,99308.0,99307.0,0.01918232]
[1733650398234,0.41635267,99308.0,99307.0,0.011]
[1733650398440,0.41635267,99308.0,99307.0,0.01918231]
[1733650398624,0.05555267,99308.0,99307.0,0.01918231]
[1733650399027,0.41635267,99308.0,99307.0,0.01918231]
[1733650399531,0.41635267,99308.0,99307.0,0.0254764]
[1733650400237,0.41635267,99308.0,99307.0,0.01918231]
[1733650400238,0.05555267,99308.0,99307.0,0.01918231]
[1733650400434,0.41635267,99308.0,99307.0,0.01918231]
[1733650401838,0.41635267,99308.0,99307.0,0.0254764]
[1733650402233,0.41635267,99308.0,99307.0,0.02547655]
[1733650403140,0.46530157,99308.0,99307.0,0.01447655]
[1733650403337,0.60330103,99308.0,99307.0,0.0026341]
[1733650403540,0.60330103,99308.0,99304.0,8.155e-05]
[1733650403743,0.045285,99305.0,99304.0,8.155e-05]
[1733650404243,0.0942339,99305.0,99304.0,8.155e-05]
[1733650404443,0.045285,99305.0,99304.0,8.155e-05]
[1733650404633,0.0942339,99305.0,99304.0,8.155e-05]
[1733650404942,0.23135297,99305.0,99304.0,8.155e-05]
[1733650405239,0.23235297,99305.0,99304.0,0.00708155]
[1733650405951,0.59315297,99305.0,99304.0,0.00708155]
[1733650406944,0.59315297,99305.0,99304.0,0.01008155]
[1733650407441,0.59315297,99305.0,99304.0,0.00708155]
[1733650407642,0.59315297,99305.0,99304.0,0.01008155]
[1733650409439,0.80446773,99305.0,99304.0,0.01008155]
[1733650409632,0.80446773,99305.0,99304.0,5.5e-07]
[1733650409633,0.59315297,99305.0,99304.0,5.5e-07]
[1733650409836,0.75208513,99305.0,99304.0,5.5e-07]
[1733650410040,0.045294,99285.0,99284.0,0.00022826]
[1733650410243,0.045294,99285.0,99273.0,0.00151097]
[1733650410244,0.045299,99275.0,99273.0,0.00151097]
[1733650410750,0.045299,99275.0,99274.0,0.03258098]
[1733650411556,0.13566462,99275.0,99274.0,0.03887578]
[1733650411761,0.13566462,99275.0,99274.0,0.04487578]
[1733650411961,0.13666462,99275.0,99274.0,0.05387578]
[1733650412153,0.13666462,99275.0,99274.0,0.09917478]
[1733650412356,0.001,99275.0,99274.0,0.09917478]
[1733650412552,0.09036562,99279.0,99278.0,0.045297]
[1733650412753,0.09036562,99281.0,99278.0,0.0062948]
[1733650412960,0.09036562,99281.0,99280.0,0.406096]
[1733650413264,0.045296,99282.0,99281.0,0.045296]
[1733650413476,0.045296,99282.0,99281.0,0.05662629]
[1733650413764,0.045296,99282.0,99281.0,0.045296]
[1733650413956,0.045296,99282.0,99281.0,0.05662725]
[1733650414554,0.045296,99282.0,99281.0,0.06062725]
[1733650415161,0.045296,99282.0,99281.0,0.42457482]
[1733650415662,0.046296,99282.0,99281.0,0.43357482]
[1733650415865,0.046296,99282.0,99281.0,0.61447148]
[1733650416060,0.046296,99282.0,99281.0,0.43357482]
[1733650416265,0.046296,99282.0,99281.0,0.61456323]
[1733650416565,0.046296,99282.0,99281.0,0.25376323]
[1733650417157,0.046296,99282.0,99281.0,0.07277482]
[1733650418462,0.046296,99282.0,99281.0,0.25376323]
[1733650419455,0.046296,99282.0,99281.0,0.07277482]
[1733650419651,0.046296,99282.0,99281.0,0.25376323]
[1733650420265,0.046296,99282.0,99281.0,0.07277482]
[1733650420467,0.046296,99282.0,99281.0,0.07277378]
[1733650420663,0.046296,99282.0,99281.0,0.25376219]
[1733650420964,0.046296,99282.0,99281.0,0.07277378]
[1733650421165,0.046296,99282.0,99281.0,0.07277383]
[1733650423762,0.046296,99282.0,99281.0,0.058296]
[1733650423956,0.046296,99282.0,99281.0,0.07277383]
[1733650426759,0.046296,99282.0,99281.0,0.02747783]
[1733650426760,0.09524861,99282.0,99281.0,0.02747783]
[1733650427074,0.15724861,99282.0,99281.0,0.02747783]
[1733650427568,0.15724861,99282.0,99281.0,0.02747916]
[1733650428572,0.28917581,99282.0,99281.0,0.02747916]
[1733650428767,0.15724861,99282.0,99281.0,0.02747916]
[1733650429469,0.108296,99282.0,99281.0,0.02747916]
[1733650429675,0.15724861,99282.0,99281.0,0.02747916]
[1733650429974,0.2891914,99282.0,99281.0,0.02747916]
[1733650430170,0.33814401,99282.0,99281.0,0.02747916]
[1733650430573,0.15724861,99282.0,99281.0,0.02747916]
[1733650431374,0.33814401,99282.0,99281.0,0.02747916]
[1733650431778,0.15724861,99282.0,99281.0,0.02747916]
[1733650432167,0.15724861,99282.0,99281.0,0.013]
[1733650432368,0.15724861,99282.0,99281.0,0.02747907]
[1733650432369,0.33814401,99282.0,99281.0,0.02747907]
[1733650433271,0.15724861,99282.0,99281.0,0.02747907]
[1733650434068,0.15724861,99282.0,99281.0,0.013]
[1733650434266,0.15724861,99282.0,99281.0,0.02747905]
[1733650437480,0.15724861,99282.0,99281.0,0.02747911]
[1733650438977,0.33829338,99282.0,99281.0,0.02747911]
[1733650439980,0.15724861,99282.0,99281.0,0.02747911]
[1733650440698,0.15736105,99282.0,99281.0,0.02747911]
[1733650440986,0.10840844,99282.0,99281.0,0.02747911]
[1733650441177,0.29167962,99282.0,99281.0,0.02747911]
[1733650443581,0.29167962,99282.0,99281.0,0.02770787]
[1733650443886,0.045299,99275.0,99274.0,8.098e-05]
[1733650444187,0.45505161,99275.0,99274.0,8.098e-05]
[1733650444486,0.58937018,99275.0,99274.0,8.098e-05]
[1733650444691,0.62097018,99275.0,99274.0,8.098e-05]
[1733650445297,0.62097018,99275.0,99274.0,0.00608098]
[1733650445585,0.61967046,99275.0,99274.0,0.00608098]
[1733650445776,0.62067046,99275.0,99274.0,0.00508098]
[1733650446091,0.62067046,99275.0,99274.0,0.00908098]
[1733650446791,0.57537146,99275.0,99247.0,0.19108841]
[1733650447086,0.57537146,99275.0,99247.0,0.18098841]
[1733650447087,0.06391791,99257.0,99247.0,0.18098841]
[1733650447283,0.045311,99248.0,99247.0,0.045311]
[1733650447489,0.02264247,99248.0,99247.0,0.06686965]
[1733650447880,0.02264247,99248.0,99247.0,0.06697287]
[1733650448082,0.02264247,99248.0,99247.0,0.07497287]
[1733650448481,0.02264247,99248.0,99247.0,0.0636352]
[1733650448777,0.02264247,99248.0,99247.0,0.0103242]
[1733650448983,0.02364247,99248.0,99247.0,0.00610322]
[1733650449592,0.02464247,99248.0,99247.0,0.00610322]
[1733650452091,0.02464247,99248.0,99247.0,0.01240026]
[1733650453492,0.02464247,99248.0,99247.0,0.01262866]
[1733650453683,0.02464247,99248.0,99247.0,0.01240026]
[1733650453884,0.02464247,99248.0,99247.0,0.01766652]
[1733650454087,0.02464247,99248.0,99247.0,0.01743812]
[1733650454582,0.02364247,99248.0,99247.0,0.01143812]
[1733650454783,0.02364247,99248.0,99247.0,0.01543812]
[1733650456097,0.02364247,99248.0,99247.0,0.01858685]
[1733650457290,0.02364247,99248.0,99247.0,0.00410322]
[1733650457505,0.02364247,99248.0,99247.0,0.0185874]
[1733650457705,0.02364247,99248.0,99247.0,0.0638984]
[1733650457881,0.02364247,99248.0,99247.0,0.06412675]
[1733650457882,0.001,99248.0,99247.0,0.06412675]
[1733650458088,0.001,99248.0,99247.0,0.0638984]
[1733650459694,0.001,99248.0,99247.0,0.07415638]
[1733650459999,0.001,99248.0,99247.0,0.0596722]
[1733650460184,0.001,99248.0,99247.0,0.06389617]
[1733650462193,0.09023554,99265.0,99260.0,0.045306]
[1733650462500,0.09023554,99275.0,99264.0,0.3608]
[1733650462794,0.045297,99278.0,99273.0,0.3608]
[1733650462795,0.13553254,99278.0,99273.0,0.3608]
[1733650462988,0.13553254,99278.0,99277.0,0.0002285]
[1733650463184,0.045297,99278.0,99277.0,0.06000845]
[1733650463389,0.13553254,99278.0,99277.0,0.05977995]
[1733650463588,0.13553254,99278.0,99277.0,0.06000831]
[1733650463589,0.045297,99278.0,99277.0,0.06000831]
[1733650463890,0.1355793,99278.0,99277.0,0.06000831]
[1733650464092,0.1355793,99278.0,99277.0,0.05977995]
[1733650464497,0.1375793,99278.0,99277.0,0.06000826]
[1733650464793,0.1375793,99278.0,99277.0,0.06000827]
[1733650465099,0.1375793,99278.0,99277.0,0.01471027]
[1733650465300,0.047297,99278.0,99277.0,0.01448195]
[1733650465800,0.050297,99278.0,99277.0,0.01448195]
[1733650466491,0.06017987,99278.0,99277.0,0.01448195]
[1733650467601,0.18075915,99278.0,99277.0,0.01448195]
[1733650467999,0.06017987,99278.0,99277.0,0.01448195]
[1733650468495,0.18075915,99278.0,99277.0,0.01448195]
[1733650470003,0.13546215,99278.0,99277.0,0.01447951]
[1733650470305,0.18075915,99278.0,99277.0,0.01447951]
[1733650471793,0.01488287,99278.0,99277.0,0.01447984]
[1733650471989,0.06017987,99278.0,99277.0,0.01447984]
[1733650473399,0.06017987,99278.0,99269.0,0.045301]
[1733650473400,0.045301,99270.0,99269.0,0.045301]
[1733650473599,0.045301,99270.0,99269.0,0.05978107]
[1733650473809,0.045301,99270.0,99269.0,0.06000949]
[1733650474199,0.045301,99270.0,99269.0,0.05978107]
[1733650475109,0.13556066,99270.0,99269.0,0.05978107]
[1733650475498,0.045301,99270.0,99269.0,0.05978107]
[1733650475698,0.13558299,99270.0,99269.0,0.05978107]
[1733650476299,0.045301,99270.0,99269.0,0.05978107]
[1733650477105,0.045301,99270.0,99269.0,0.045301]
[1733650477400,0.045301,99270.0,99269.0,0.05978092]
[1733650477401,0.13558299,99270.0,99269.0,0.05978092]
[1733650477606,0.045301,99270.0,99269.0,0.05978092]
[1733650478108,0.076001,99270.0,99269.0,0.05978092]
[1733650478716,0.19634722,99270.0,99269.0,0.06000924]
[1733650478909,0.19634722,99270.0,99269.0,0.06000933]
[1733650479310,0.19634722,99270.0,99269.0,0.05978092]
[1733650480511,0.19634722,99270.0,99269.0,0.05978111]
[1733650481007,0.19634722,99270.0,99269.0,0.0600095]
[1733650481205,0.19634722,99270.0,99269.0,0.05978111]
[1733650481914,0.19638017,99270.0,99269.0,0.06000948]
[1733650482206,0.19638017,99270.0,99269.0,0.05978111]
[1733650482412,0.076001,99270.0,99269.0,0.05978111]
[1733650483211,0.19638873,99270.0,99269.0,0.05978111]
[1733650483708,0.076001,99270.0,99269.0,0.05978111]
[1733650484218,0.19639983,99270.0,99269.0,0.05978111]
[1733650484407,0.076001,99270.0,99269.0,0.05978111]
[1733650487602,0.076001,99270.0,99269.0,0.05978106]
[1733650490121,0.076001,99270.0,99269.0,0.42058106]
[1733650490711,0.076001,99270.0,99269.0,0.4205807]
[1733650493118,0.0307,99270.0,99269.0,0.4205807]
[1733650493312,0.18142941,99270.0,99269.0,0.4205807]
[1733650494113,0.18142941,99270.0,99269.0,0.42058076]
[1733650494320,0.0307,99270.0,99269.0,0.42058076]
[1733650494517,0.18163612,99270.0,99269.0,0.42058076]
[1733650495313,0.18162143,99270.0,99269.0,0.42058076]
[1733650496517,0.18161737,99270.0,99269.0,0.42058076]
[1733650497318,0.0307,99270.0,99269.0,0.42058076]
[1733650497625,0.18162006,99270.0,99269.0,0.42058076]
[1733650497825,0.0307,99270.0,99269.0,0.42058076]
[1733650498016,0.0307,99270.0,99269.0,0.05978076]
[1733650499824,0.07965872,99270.0,99269.0,0.05978076]
[1733650500213,0.0307,99270.0,99269.0,0.05978076]
[1733650500626,0.15094611,99270.0,99269.0,0.37527976]
[1733650500827,0.02710747,99272.0,99269.0,0.68659071]
[1733650501126,0.18087529,99284.0,99270.0,0.33606618]
[1733650501329,0.18087529,99286.0,99281.0,0.406096]
[1733650501517,0.18087529,99290.0,99281.0,0.43188671]
[1733650501825,0.18087529,99293.0,99281.0,0.43188671]
[1733650502126,0.09051935,99284.0,99281.0,0.43188671]
[1733650502529,0.09063179,99282.0,99281.0,0.43188671]
[1733650502827,0.00211244,99282.0,99281.0,0.43188671]
[1733650503019,0.00211244,99282.0,99281.0,0.42057576]
[1733650503417,0.00711244,99282.0,99281.0,0.43177118]
[1733650503721,0.00611244,99282.0,99281.0,0.43177118]
[1733650503928,0.00111244,99282.0,99281.0,0.43177118]
[1733650504129,0.00211244,99282.0,99281.0,0.43177118]
[1733650504330,0.00211244,99282.0,99281.0,0.42057576]
[1733650506130,0.00211244,99282.0,99281.0,0.43088802]
[1733650507627,0.00211244,99282.0,99281.0,0.44221338]
[1733650510734,0.00211244,99282.0,99281.0,0.44219786]
[1733650512842,0.09034942,99288.0,99281.0,0.43088802]
[1733650513027,0.09034942,99296.0,99286.0,0.3608]
[1733650513230,0.09034942,99300.0,99295.0,0.3608]
[1733650513536,0.09034942,99303.0,99302.0,0.045286]
[1733650513736,0.0902853,99306.0,99303.0,0.045286]
[1733650513938,0.0902853,99313.0,99312.0,0.045282]
[1733650514144,0.0635,99319.0,99318.0,0.045279]
[1733650514328,0.0635,99319.0,99318.0,0.05998696]
[1733650514633,0.0635,99319.0,99318.0,0.05975876]
[1733650515723,0.108779,99319.0,99318.0,0.05975876]
[1733650515928,0.108779,99319.0,99318.0,0.00818421]
[1733650515929,0.16171667,99319.0,99318.0,0.00818421]
[1733650516330,0.16971667,99319.0,99318.0,0.00818421]
[1733650516535,0.120779,99319.0,99318.0,0.00818421]
[1733650517037,0.30113276,99319.0,99318.0,0.00818421]
[1733650517440,0.30102594,99319.0,99318.0,0.00818421]
[1733650518033,0.34996361,99319.0,99318.0,0.00818421]
[1733650518236,0.71076361,99319.0,99318.0,0.00818421]
[1733650518443,0.045285,99307.0,99306.0,0.045284]
[1733650518739,0.045285,99307.0,99306.0,0.05157707]
[1733650519535,0.045285,99307.0,99306.0,0.045284]
[1733650519735,0.046285,99307.0,99306.0,0.05157706]
[1733650519931,0.049285,99307.0,99306.0,0.05157706]
[1733650520838,0.004,99307.0,99306.0,0.05157706]
[1733650521937,0.004,99307.0,99306.0,0.41260503]
[1733650522134,0.004,99307.0,99306.0,0.41237706]
[1733650523049,0.004,99307.0,99306.0,0.41237707]
[1733650526453,0.004,99307.0,99306.0,0.42234616]
[1733650526745,0.004,99307.0,99306.0,0.42234588]
[1733650528546,0.004,99307.0,99306.0,0.42738009]
[1733650529648,0.004,99307.0,99306.0,0.42738002]
[1733650530340,0.004,99307.0,99306.0,0.43052639]
[1733650531246,8.961e-05,99322.0,99312.0,0.045282]
[1733650531449,0.09022649,99317.0,99313.0,0.01447123]
[1733650531748,8.961e-05,99322.0,99312.0,0.045282]
[1733650531749,0.09022649,99318.0,99316.0,0.3608]
[1733650531936,0.09022649,99318.0,99317.0,0.05975123]
[1733650532445,8.961e-05,99322.0,99317.0,0.01447123]
[1733650532646,0.0902075,99318.0,99317.0,0.04528]
[1733650532848,0.09020729,99320.0,99317.0,0.01447115]
[1733650533047,0.09020729,99320.0,99319.0,0.045279]
[1733650533343,0.09020729,99320.0,99319.0,0.05975015]
[1733650533543,0.00208961,99322.0,99321.0,0.045278]
[1733650533850,0.00208961,99322.0,99321.0,0.05974915]
[1733650534445,8.961e-05,99322.0,99321.0,0.01447115]
[1733650534650,8.961e-05,99322.0,99321.0,0.05974915]
[1733650535354,0.00408961,99322.0,99321.0,0.05974915]
[1733650535952,0.01308961,99322.0,99321.0,0.06074915]
[1733650536454,0.01308961,99322.0,99321.0,0.06075031]
[1733650536746,0.01308961,99322.0,99321.0,0.06075017]
[1733650537138,0.05836661,99322.0,99321.0,0.06075017]
[1733650537339,0.20874582,99322.0,99321.0,0.06075017]
[1733650537946,0.05836661,99322.0,99321.0,0.06075017]
[1733650538649,0.14855322,99322.0,99321.0,0.06075017]
[1733650539341,0.05836661,99322.0,99321.0,0.06075017]
[1733650546054,0.05836661,99322.0,99321.0,0.06075047]
[1733650552867,0.20874582,99322.0,99321.0,0.06075047]
[1733650553070,0.10730269,99322.0,99321.0,0.06075047]
[1733650553563,0.10730269,99322.0,99321.0,0.06075107]
[1733650554159,0.10730269,99322.0,99321.0,0.01547307]
[1733650554370,0.10730269,99322.0,99321.0,0.01132675]
[1733650554558,0.04528,99317.0,99316.0,0.36136]
[1733650554762,0.3608,99317.0,99312.0,0.045282]
[1733650554963,0.3608,99317.0,99304.0,0.18084896]
[1733650554964,0.045285,99307.0,99306.0,0.045284]
[1733650555163,0.045285,99305.0,99304.0,0.0001269]
[1733650555468,0.09422108,99305.0,99304.0,0.0001269]
[1733650555669,0.045285,99305.0,99304.0,0.0001269]
[1733650555869,0.09422108,99305.0,99304.0,0.0001269]
[1733650556165,0.27501368,99305.0,99304.0,0.00035542]
[1733650556366,0.27501368,99305.0,99304.0,0.0001269]
[1733650556367,0.09422108,99305.0,99304.0,0.0001269]
[1733650556565,0.09622108,99305.0,99304.0,0.0001269]
[1733650557159,0.22791711,99305.0,99304.0,0.0001269]
[1733650557360,0.09622108,99305.0,99304.0,0.0001269]
[1733650557670,0.09722108,99305.0,99304.0,0.0001269]
[1733650557971,0.12962108,99305.0,99304.0,0.0001269]
[1733650558368,0.12962108,99305.0,99304.0,0.00035518]
[1733650559373,0.12962108,99305.0,99304.0,0.0001269]
[1733650560169,0.080685,99305.0,99304.0,0.0001269]
[1733650561881,0.12963476,99305.0,99304.0,0.0001269]
[1733650562573,0.080685,99305.0,99304.0,0.00642135]
[1733650562959,0.12963477,99305.0,99304.0,0.00642135]
[1733650563161,0.12963471,99305.0,99304.0,0.00642135]
[1733650563365,0.080685,99305.0,99304.0,0.00642135]
[1733650564173,0.23096196,99305.0,99304.0,0.00642135]
[1733650564569,0.048285,99305.0,99304.0,0.01145679]
[1733650565171,0.1684973,99305.0,99304.0,0.01145679]
[1733650565980,0.1684973,99305.0,99304.0,0.0001269]
[1733650566180,0.1684973,99305.0,99304.0,0.01145581]
[1733650566576,0.1684973,99305.0,99304.0,0.01460273]
[1733650568777,0.048285,99305.0,99304.0,0.01460273]
[1733650570379,0.048285,99305.0,99304.0,0.06011591]
[1733650570580,0.048285,99305.0,99304.0,0.05988773]
[1733650572185,0.048285,99305.0,99304.0,0.01460273]
[1733650572380,0.048285,99305.0,99304.0,0.01460241]
[1733650574285,0.1684973,99305.0,99304.0,0.01460241]
[1733650575476,0.048285,99305.0,99304.0,0.01460241]
[1733650576080,0.048285,99305.0,99304.0,0.0146025]
[1733650576281,0.048285,99305.0,99304.0,0.4206875]
[1733650577494,0.003,99305.0,99304.0,0.41609173]
[1733650577674,0.09025147,99311.0,99304.0,0.43056592]
[1733650577873,0.09025147,99315.0,99313.0,0.045281]
[1733650578077,8.961e-05,99322.0,99314.0,0.01447419]
[1733650578376,8.961e-05,99322.0,99321.0,0.045278]
[1733650578577,8.961e-05,99322.0,99321.0,0.05975219]
[1733650579090,8.961e-05,99322.0,99321.0,0.045278]
[1733650579280,0.00608961,99322.0,99321.0,0.05975053]
[1733650579479,0.05136661,99322.0,99321.0,0.05975053]
[1733650579889,0.05136661,99322.0,99321.0,0.01447253]
[1733650580397,0.18065932,99322.0,99321.0,0.01447267]
[1733650580584,0.06036661,99322.0,99321.0,0.01447267]
[1733650581585,0.06436661,99322.0,99321.0,0.01447267]
[1733650581779,0.06436661,99322.0,99321.0,0.01470086]
[1733650582285,0.06436661,99322.0,99321.0,0.05997881]
[1733650582473,0.06436661,99322.0,99321.0,0.05975132]
[1733650582877,0.06436661,99322.0,99321.0,0.05997933]
[1733650584683,0.06436661,99322.0,99321.0,0.05975132]
[1733650585889,0.06436661,99322.0,99321.0,0.0597515]
[1733650586486,0.01908961,99322.0,99321.0,0.0597515]
[1733650587390,0.1395274,99322.0,99321.0,0.0597515]
[1733650589089,0.1848044,99322.0,99321.0,0.0597515]
[1733650589390,0.1848044,99322.0,99321.0,0.05997887]
[1733650589587,0.06436661,99322.0,99321.0,0.05997887]
[1733650590287,0.06436661,99322.0,99321.0,0.05975088]
[1733650590886,0.01908961,99322.0,99321.0,0.05975088]
[1733650592089,0.01908961,99322.0,99321.0,0.42055088]
[1733650592685,0.01908961,99322.0,99321.0,0.406078]
[1733650592988,0.01908961,99322.0,99321.0,0.0597508]
[1733650593289,0.06436661,99322.0,99321.0,0.0599788]
[1733650593488,0.06436661,99322.0,99321.0,0.0597508]
[1733650593684,0.21464357,99322.0,99321.0,0.0597508]
[1733650594081,0.21464357,99322.0,99321.0,0.0599788]
[1733650594394,0.06436661,99322.0,99321.0,0.0597508]
[1733650595284,0.11330327,99322.0,99321.0,0.01470085]
[1733650595486,0.11330327,99322.0,99321.0,0.0144728]
[1733650595684,0.14570327,99322.0,99321.0,0.0144728]
[1733650596087,0.28311072,99322.0,99321.0,0.0144728]
[1733650596293,0.14570327,99322.0,99321.0,0.00629252]
[1733650596484,0.045282,99312.0,99311.0,0.045282]
[1733650596681,0.045282,99312.0,99311.0,0.05975661]
[1733650596881,0.19585827,99312.0,99311.0,0.05975661]
[1733650597394,0.045282,99312.0,99311.0,0.05975661]
[1733650597790,0.047282,99312.0,99311.0,0.05975661]
[1733650598993,0.052282,99312.0,99311.0,0.05975661]
[1733650600091,0.052282,99312.0,99311.0,0.01447461]
[1733650600496,0.06220815,99312.0,99311.0,0.01447461]
[1733650600990,0.11115205,99312.0,99311.0,0.0147027]
[1733650601193,0.11115205,99312.0,99311.0,0.01447461]
[1733650601384,0.06220815,99312.0,99311.0,0.01447461]
[1733650601699,0.11115275,99312.0,99311.0,0.01447461]
[1733650602998,0.29184427,99312.0,99311.0,0.01447461]
[1733650605100,0.06587075,99312.0,99309.0,0.00022809]
[1733650605298,0.06587075,99312.0,99304.0,0.0001269]
[1733650605299,0.4550266,99311.0,99310.0,0.01447617]
[1733650605597,0.5887226,99311.0,99310.0,0.01447617]
[1733650606100,0.58843865,99311.0,99310.0,0.01447617]
[1733650606503,0.59243865,99311.0,99310.0,0.01447617]
[1733650606700,0.045285,99305.0,99304.0,0.0001269]
[1733650606890,0.09423521,99305.0,99304.0,0.0001269]
[1733650607804,0.09523521,99305.0,99304.0,0.0001269]
[1733650608402,0.09723521,99305.0,99304.0,0.0001269]
[1733650610894,0.09723619,99305.0,99304.0,0.0001269]
[1733650611899,0.27784578,99305.0,99304.0,0.0001269]
[1733650612405,0.09723619,99305.0,99304.0,0.0001269]
[1733650612906,0.09723619,99305.0,99290.0,0.00022806]
[1733650612907,0.05195119,99305.0,99290.0,0.00022806]
[1733650613100,0.52639361,99291.0,99290.0,0.00022806]
[1733650613300,0.52639361,99291.0,99290.0,0.00652292]
[1733650613499,0.55859361,99291.0,99290.0,0.00629486]
[1733650613803,0.438291,99291.0,99290.0,0.00641492]
[1733650614003,0.438291,99291.0,99290.0,0.00841492]
[1733650614594,0.438291,99291.0,99290.0,0.01241492]
[1733650614798,0.55859361,99291.0,99290.0,0.01241492]
[1733650614994,0.55859361,99291.0,99290.0,0.00841492]
[1733650615304,0.438291,99291.0,99290.0,0.01745082]
[1733650615502,0.44830407,99291.0,99290.0,0.01745082]
[1733650615704,0.56860668,99291.0,99290.0,0.01745082]
[1733650616403,0.44830407,99291.0,99290.0,0.01745082]
[1733650617510,0.44830407,99291.0,99290.0,0.02059825]
[1733650619799,0.44830407,99291.0,99290.0,0.00612006]
[1733650620013,0.44830407,99291.0,99290.0,0.02059828]
[1733650621702,0.56860668,99291.0,99290.0,0.02059828]
[1733650622510,0.44830407,99291.0,99290.0,0.02059828]
[1733650622906,0.045296,99281.0,99280.0,0.00022812]
[1733650623103,0.045296,99281.0,99274.0,0.00022812]
[1733650623104,0.045298,99277.0,99274.0,0.00022812]
[1733650623299,0.045298,99277.0,99264.0,0.48858096]
[1733650623300,0.0306,99276.0,99270.0,0.00022812]
[1733650623614,0.0306,99276.0,99264.0,0.12774096]
[1733650623615,0.3608,99271.0,99268.0,0.00022812]
[1733650623805,0.3608,99271.0,99264.0,0.12774096]
[1733650623806,0.12022986,99269.0,99264.0,0.12744908]
[1733650624001,0.12022986,99268.0,99264.0,0.12722096]